[Event "Titled Tuesday Blitz April 05 Early 2022"]
[White "Kostina, Nadezhda"]
[Black "Prohorov, Olexandr"]
[WhiteFideId "4195876"]
[BlackFideId "14105578"]
[WhiteElo "1982"]
[BlackElo "1993"]
[Result "0-1"]
[Round "03"]
[TimeControl "180+1"]
[Date "2022.04.05"]
[WhiteClock "0:00:03"]
[BlackClock "0:00:13"]

1. e4 {[%clk 0:03:00]}  c5 {[%clk 0:03:00]} 2. Nf3 {[%clk 0:03:00]}  Nc6 {[%clk 0:03:00]} 3. Bb5 {[%clk 0:02:59]}  g6 {[%clk 0:02:59]} 4. Bxc6 {[%clk 0:02:58]}  dxc6 {[%clk 0:03:00]} 5. h3 {[%clk 0:02:55]}  Bg7 {[%clk 0:03:00]} 6. d3 {[%clk 0:02:55]}  Nf6 {[%clk 0:02:54]} 7. O-O {[%clk 0:02:55]}  Nd7 {[%clk 0:02:54]} 8. Re1 {[%clk 0:02:47]}  Nf8 {[%clk 0:02:52]} 9. e5 {[%clk 0:02:35]}  Ne6 {[%clk 0:02:48]} 10. Nc3 {[%clk 0:02:31]}  O-O {[%clk 0:02:47]} 11. Ne4 {[%clk 0:02:18]}  b6 {[%clk 0:02:31]} 12. a4 {[%clk 0:02:06]}  a5 {[%clk 0:02:30]} 13. Bd2 {[%clk 0:01:34]}  f6 {[%clk 0:02:24]} 14. exf6 {[%clk 0:01:24]}  exf6 {[%clk 0:02:21]} 15. Qc1 {[%clk 0:01:19]}  Qc7 {[%clk 0:02:14]} 16. Bh6 {[%clk 0:01:17]}  Bd7 {[%clk 0:02:08]} 17. Bxg7 {[%clk 0:01:15]}  Kxg7 {[%clk 0:02:09]} 18. Qd2 {[%clk 0:01:05]}  Rad8 {[%clk 0:02:09]} 19. Qc3 {[%clk 0:01:04]}  Bc8 {[%clk 0:01:53]} 20. Re3 {[%clk 0:00:56]}  Nf4 {[%clk 0:01:48]} 21. Rae1 {[%clk 0:00:50]}  Nd5 {[%clk 0:01:42]} 22. Qd2 {[%clk 0:00:19]}  Nxe3 {[%clk 0:01:41]} 23. Rxe3 {[%clk 0:00:18]}  c4 {[%clk 0:01:29]} 24. Qc3 {[%clk 0:00:18]}  cxd3 {[%clk 0:01:25]} 25. cxd3 {[%clk 0:00:17]}  c5 {[%clk 0:01:26]} 26. Neg5 {[%clk 0:00:16]}  Rfe8 {[%clk 0:01:17]} 27. Ne4 {[%clk 0:00:15]}  Qc6 {[%clk 0:01:08]} 28. Nfd2 {[%clk 0:00:14]}  h6 {[%clk 0:00:59]} 29. Rf3 {[%clk 0:00:14]}  Re6 {[%clk 0:00:55]} 30. Nc4 {[%clk 0:00:14]}  Rd4 {[%clk 0:00:51]} 31. Ne3 {[%clk 0:00:13]}  Ba6 {[%clk 0:00:42]} 32. Ng4 {[%clk 0:00:13]}  f5 {[%clk 0:00:26]} 33. Qb3 {[%clk 0:00:10]}  fxg4 {[%clk 0:00:23]} 34. hxg4 {[%clk 0:00:03]}  Bxd3 {[%clk 0:00:13]} 0-1


[Site "https://www.chess.com"]

[Event "Titled Tuesday Blitz April 05 Early 2022"]
[White "Kouskoutis, Georgios-Alexandros"]
[Black "Goryachkina, Aleksandra"]
[WhiteFideId "4234049"]
[BlackFideId "4147103"]
[WhiteElo "2130"]
[BlackElo "2426"]
[Result "1-0"]
[Round "03"]
[TimeControl "180+1"]
[Date "2022.04.05"]
[WhiteClock "0:00:09"]
[BlackClock "0:00:08"]

1. c4 {[%clk 0:03:00]}  Nf6 {[%clk 0:02:59]} 2. g3 {[%clk 0:03:01]}  e6 {[%clk 0:02:58]} 3. Bg2 {[%clk 0:03:01]}  d5 {[%clk 0:02:58]} 4. Nf3 {[%clk 0:03:02]}  Be7 {[%clk 0:02:58]} 5. O-O {[%clk 0:03:03]}  O-O {[%clk 0:02:58]} 6. b3 {[%clk 0:03:03]}  b6 {[%clk 0:02:52]} 7. cxd5 {[%clk 0:03:01]}  exd5 {[%clk 0:02:51]} 8. d4 {[%clk 0:03:00]}  Bb7 {[%clk 0:02:36]} 9. Bb2 {[%clk 0:02:53]}  Nbd7 {[%clk 0:02:35]} 10. Nc3 {[%clk 0:02:53]}  c5 {[%clk 0:02:31]} 11. Rc1 {[%clk 0:02:41]}  Rc8 {[%clk 0:02:31]} 12. dxc5 {[%clk 0:02:37]}  bxc5 {[%clk 0:02:30]} 13. e3 {[%clk 0:02:37]}  Nb6 {[%clk 0:02:08]} 14. Qd2 {[%clk 0:01:22]}  Ne4 {[%clk 0:02:00]} 15. Qe2 {[%clk 0:01:05]}  f5 {[%clk 0:01:52]} 16. Rfd1 {[%clk 0:01:04]}  Bf6 {[%clk 0:01:37]} 17. Ne1 {[%clk 0:00:44]}  Qe7 {[%clk 0:01:32]} 18. Nd3 {[%clk 0:00:32]}  Rfe8 {[%clk 0:01:10]} 19. Nxe4 {[%clk 0:00:19]}  fxe4 {[%clk 0:01:05]} 20. Nf4 {[%clk 0:00:19]}  Bxb2 {[%clk 0:00:49]} 21. Qxb2 {[%clk 0:00:20]}  Qf7 {[%clk 0:00:37]} 22. h4 {[%clk 0:00:16]}  Rc7 {[%clk 0:00:23]} 23. Rc2 {[%clk 0:00:14]}  c4 {[%clk 0:00:19]} 24. Rdc1 {[%clk 0:00:13]}  h6 {[%clk 0:00:12]} 25. h5 {[%clk 0:00:12]}  d4 {[%clk 0:00:08]} 26. Qxd4 {[%clk 0:00:09]} 1-0


[Site "https://www.chess.com"]

[Event "Titled Tuesday Blitz April 05 Early 2022"]
[White "Kryakvin, Dmitry"]
[Black "Brodowski, Piotr"]
[WhiteFideId "4153278"]
[BlackFideId "1124480"]
[WhiteElo "2422"]
[BlackElo "2422"]
[Result "*"]
[Round "03"]
[TimeControl "180+1"]
[Date "2022.04.05"]
[WhiteClock "0:01:54"]
[BlackClock "0:01:36"]

1. d4 {[%clk 0:02:56]}  c5 {[%clk 0:02:59]} 2. d5 {[%clk 0:02:55]}  d6 {[%clk 0:02:53]} 3. Nc3 {[%clk 0:02:50]}  Nf6 {[%clk 0:02:52]} 4. e4 {[%clk 0:02:50]}  g6 {[%clk 0:02:52]} 5. Nf3 {[%clk 0:02:47]}  Bg7 {[%clk 0:02:48]} 6. Be2 {[%clk 0:02:47]}  O-O {[%clk 0:02:48]} 7. O-O {[%clk 0:02:47]}  Na6 {[%clk 0:02:49]} 8. h3 {[%clk 0:02:44]}  Nc7 {[%clk 0:02:49]} 9. Bf4 {[%clk 0:02:44]}  b6 {[%clk 0:02:48]} 10. a4 {[%clk 0:02:43]}  a6 {[%clk 0:02:47]} 11. Bc4 {[%clk 0:02:43]}  Bb7 {[%clk 0:02:47]} 12. Re1 {[%clk 0:02:42]}  Qd7 {[%clk 0:02:39]} 13. Qd3 {[%clk 0:02:40]}  Rad8 {[%clk 0:02:30]} 14. e5 {[%clk 0:02:40]}  dxe5 {[%clk 0:02:29]} 15. Nxe5 {[%clk 0:02:39]}  Qc8 {[%clk 0:02:28]} 16. Rad1 {[%clk 0:02:06]}  Ncxd5 {[%clk 0:02:22]} 17. Nxd5 {[%clk 0:02:06]}  Nxd5 {[%clk 0:02:22]} 18. Bxd5 {[%clk 0:02:04]}  Rxd5 {[%clk 0:02:19]} 19. Qg3 {[%clk 0:02:04]}  Rxd1 {[%clk 0:02:07]} 20. Rxd1 {[%clk 0:02:05]}  Rd8 {[%clk 0:01:54]} 21. Re1 {[%clk 0:02:00]}  Qf5 {[%clk 0:01:36]} 22. Ng4 {[%clk 0:01:54]} *


[Site "https://www.chess.com"]

[Event "Titled Tuesday Blitz April 05 Early 2022"]
[White "Manukian, Artak"]
[Black "Maevsky, Nikolay"]
[WhiteFideId "13301373"]
[BlackFideId "4198220"]
[WhiteElo "2365"]
[BlackElo "2126"]
[Result "0-1"]
[Round "03"]
[TimeControl "180+1"]
[Date "2022.04.05"]
[WhiteClock "0:02:09"]
[BlackClock "0:02:07"]

1. e4 {[%clk 0:03:00]}  c6 {[%clk 0:03:00]} 2. d4 {[%clk 0:03:00]}  d5 {[%clk 0:03:00]} 3. e5 {[%clk 0:03:01]}  Bf5 {[%clk 0:03:00]} 4. c4 {[%clk 0:03:01]}  e6 {[%clk 0:03:00]} 5. Nc3 {[%clk 0:03:01]}  Nd7 {[%clk 0:03:00]} 6. Nf3 {[%clk 0:03:01]}  Ne7 {[%clk 0:02:59]} 7. Nh4 {[%clk 0:03:01]}  dxc4 {[%clk 0:02:57]} 8. Bxc4 {[%clk 0:03:00]}  Bg6 {[%clk 0:02:56]} 9. Bg5 {[%clk 0:03:00]}  Qc7 {[%clk 0:02:51]} 10. O-O {[%clk 0:02:58]}  Nb6 {[%clk 0:02:51]} 11. Bb3 {[%clk 0:02:58]}  Ned5 {[%clk 0:02:47]} 12. Nxg6 {[%clk 0:02:51]}  hxg6 {[%clk 0:02:46]} 13. Ne4 {[%clk 0:02:52]}  Nc8 {[%clk 0:02:42]} 14. Rc1 {[%clk 0:02:50]}  Be7 {[%clk 0:02:41]} 15. Bxe7 {[%clk 0:02:49]}  Qxe7 {[%clk 0:02:41]} 16. g3 {[%clk 0:02:48]}  O-O {[%clk 0:02:38]} 17. h4 {[%clk 0:02:47]}  Rd8 {[%clk 0:02:38]} 18. Qd2 {[%clk 0:02:43]}  Ncb6 {[%clk 0:02:37]} 19. Nd6 {[%clk 0:02:42]}  Rxd6 {[%clk 0:02:36]} 20. exd6 {[%clk 0:02:43]}  Qxd6 {[%clk 0:02:36]} 21. a3 {[%clk 0:02:37]}  Rd8 {[%clk 0:02:35]} 22. Rfd1 {[%clk 0:02:37]}  Nf6 {[%clk 0:02:35]} 23. Qf4 {[%clk 0:02:36]}  Qxf4 {[%clk 0:02:34]} 24. gxf4 {[%clk 0:02:37]}  Nh5 {[%clk 0:02:34]} 25. f5 {[%clk 0:02:36]}  gxf5 {[%clk 0:02:34]} 26. Ba2 {[%clk 0:02:34]}  Nf4 {[%clk 0:02:33]} 27. Kf1 {[%clk 0:02:33]}  g6 {[%clk 0:02:31]} 28. b4 {[%clk 0:02:31]}  Kg7 {[%clk 0:02:31]} 29. d5 {[%clk 0:02:23]}  exd5 {[%clk 0:02:29]} 30. Rd4 {[%clk 0:02:23]}  Ne6 {[%clk 0:02:28]} 31. Rd3 {[%clk 0:02:23]}  Rh8 {[%clk 0:02:28]} 32. Rh3 {[%clk 0:02:23]}  Nf4 {[%clk 0:02:28]} 33. Rh2 {[%clk 0:02:23]}  g5 {[%clk 0:02:27]} 34. b5 {[%clk 0:02:20]}  cxb5 {[%clk 0:02:25]} 35. Rc7 {[%clk 0:02:20]}  Nc4 {[%clk 0:02:24]} 36. Bxc4 {[%clk 0:02:19]}  bxc4 {[%clk 0:02:24]} 37. Rxb7 {[%clk 0:02:18]}  c3 {[%clk 0:02:22]} 38. Rc7 {[%clk 0:02:18]}  d4 {[%clk 0:02:22]} 39. Ke1 {[%clk 0:02:16]}  Rxh4 {[%clk 0:02:17]} 40. Rxh4 {[%clk 0:02:16]}  gxh4 {[%clk 0:02:17]} 41. Rd7 {[%clk 0:02:15]}  d3 {[%clk 0:02:16]} 42. Rd4 {[%clk 0:02:13]}  c2 {[%clk 0:02:08]} 43. Kd2 {[%clk 0:02:12]}  Ne2 {[%clk 0:02:08]} 44. Kxd3 {[%clk 0:02:09]}  Nxd4 {[%clk 0:02:07]} 0-1


[Site "https://www.chess.com"]

[Event "Titled Tuesday Blitz April 05 Early 2022"]
[White "Martin Duque, Jesus"]
[Black "Sanchez, Robert"]
[WhiteFideId "2208954"]
[BlackFideId "2034360"]
[WhiteElo "2243"]
[BlackElo "2283"]
[Result "1-0"]
[Round "03"]
[TimeControl "180+1"]
[Date "2022.04.05"]
[WhiteClock "0:01:32"]
[BlackClock "0:01:29"]

1. Nf3 {[%clk 0:02:14]}  d5 {[%clk 0:02:58]} 2. e3 {[%clk 0:02:13]}  c5 {[%clk 0:02:55]} 3. Bb5+ {[%clk 0:02:11]}  Nc6 {[%clk 0:02:51]} 4. O-O {[%clk 0:02:10]}  Bd7 {[%clk 0:02:49]} 5. c4 {[%clk 0:02:09]}  e6 {[%clk 0:02:48]} 6. cxd5 {[%clk 0:02:04]}  exd5 {[%clk 0:02:48]} 7. d4 {[%clk 0:02:04]}  c4 {[%clk 0:02:45]} 8. b3 {[%clk 0:02:03]}  cxb3 {[%clk 0:02:41]} 9. Qxb3 {[%clk 0:02:01]}  Nf6 {[%clk 0:02:41]} 10. Nc3 {[%clk 0:02:01]}  a6 {[%clk 0:02:39]} 11. Bd3 {[%clk 0:01:57]}  Na5 {[%clk 0:02:29]} 12. Qb1 {[%clk 0:01:53]}  Rc8 {[%clk 0:02:23]} 13. Bd2 {[%clk 0:01:44]}  Bd6 {[%clk 0:02:07]} 14. Ne5 {[%clk 0:01:41]}  Be6 {[%clk 0:01:57]} 15. f4 {[%clk 0:01:41]}  b5 {[%clk 0:01:37]} 16. Nxb5 {[%clk 0:01:31]}  axb5 {[%clk 0:01:35]} 17. Qxb5+ {[%clk 0:01:31]}  Nc6 {[%clk 0:01:33]} 18. Nxc6 {[%clk 0:01:32]}  Bd7 {[%clk 0:01:28]} 19. Nxd8 {[%clk 0:01:32]}  Bxb5 {[%clk 0:01:28]} 20. Bxb5+ {[%clk 0:01:32]}  Kxd8 {[%clk 0:01:29]} 1-0


[Site "https://www.chess.com"]

[Event "Titled Tuesday Blitz April 05 Early 2022"]
[White "Martinez Alcantara, Jose Eduardo"]
[Black "Pap, Gyula"]
[WhiteFideId "3805662"]
[BlackFideId "725323"]
[WhiteElo "2690"]
[BlackElo "2553"]
[Result "*"]
[Round "03"]
[TimeControl "180+1"]
[Date "2022.04.05"]
[WhiteClock "0:02:05"]
[BlackClock "0:00:44"]

1. e4 {[%clk 0:03:00]}  c6 {[%clk 0:02:59]} 2. d4 {[%clk 0:03:00]}  d5 {[%clk 0:02:59]} 3. e5 {[%clk 0:03:01]}  Bf5 {[%clk 0:02:59]} 4. h4 {[%clk 0:03:02]}  h5 {[%clk 0:02:59]} 5. Bd3 {[%clk 0:03:03]}  Bxd3 {[%clk 0:02:57]} 6. Qxd3 {[%clk 0:03:04]}  Qa5+ {[%clk 0:02:54]} 7. b4 {[%clk 0:03:04]}  Qa6 {[%clk 0:02:49]} 8. e6 {[%clk 0:03:04]}  Qxd3 {[%clk 0:02:44]} 9. cxd3 {[%clk 0:03:05]}  fxe6 {[%clk 0:02:19]} 10. Nd2 {[%clk 0:03:05]}  e5 {[%clk 0:02:12]} 11. dxe5 {[%clk 0:03:05]}  e6 {[%clk 0:02:13]} 12. Rb1 {[%clk 0:03:05]}  Nh6 {[%clk 0:02:09]} 13. Ndf3 {[%clk 0:03:04]}  Nf5 {[%clk 0:02:09]} 14. Nh3 {[%clk 0:03:04]}  Na6 {[%clk 0:01:59]} 15. Bd2 {[%clk 0:03:04]}  Nc7 {[%clk 0:01:54]} 16. a4 {[%clk 0:03:05]}  Kd7 {[%clk 0:01:50]} 17. O-O {[%clk 0:03:04]}  Be7 {[%clk 0:01:35]} 18. g3 {[%clk 0:03:05]}  a6 {[%clk 0:01:03]} 19. Nf4 {[%clk 0:03:04]}  Rag8 {[%clk 0:01:01]} 20. Ng6 {[%clk 0:02:55]}  Rh7 {[%clk 0:01:01]} 21. Kg2 {[%clk 0:02:46]}  Bd8 {[%clk 0:00:57]} 22. Rh1 {[%clk 0:02:41]}  Ne7 {[%clk 0:00:56]} 23. Nf4 {[%clk 0:02:25]}  Nf5 {[%clk 0:00:54]} 24. Nh3 {[%clk 0:02:20]}  g6 {[%clk 0:00:52]} 25. Nfg1 {[%clk 0:02:05]}  Nd4 {[%clk 0:00:44]} *


[Site "https://www.chess.com"]

[Event "Titled Tuesday Blitz April 05 Early 2022"]
[White "Matlakov, Maxim"]
[Black "Kozak, Antoni"]
[WhiteFideId "4168003"]
[BlackFideId "21832030"]
[WhiteElo "2669"]
[BlackElo "2236"]
[Result "*"]
[Round "03"]
[TimeControl "180+1"]
[Date "2022.04.05"]
[WhiteClock "0:01:30"]
[BlackClock "0:01:14"]

1. d4 {[%clk 0:03:00]}  d5 {[%clk 0:02:54]} 2. c4 {[%clk 0:03:01]}  e6 {[%clk 0:02:54]} 3. Nf3 {[%clk 0:03:01]}  Nf6 {[%clk 0:02:53]} 4. Nc3 {[%clk 0:03:01]}  c6 {[%clk 0:02:53]} 5. e3 {[%clk 0:03:00]}  Nbd7 {[%clk 0:02:52]} 6. Be2 {[%clk 0:03:00]}  dxc4 {[%clk 0:02:49]} 7. a4 {[%clk 0:02:58]}  Bb4 {[%clk 0:02:43]} 8. O-O {[%clk 0:02:57]}  O-O {[%clk 0:02:43]} 9. Bxc4 {[%clk 0:02:57]}  Qe7 {[%clk 0:02:43]} 10. Qe2 {[%clk 0:02:52]}  e5 {[%clk 0:02:41]} 11. Qc2 {[%clk 0:02:40]}  h6 {[%clk 0:02:19]} 12. Nh4 {[%clk 0:02:12]}  Qd8 {[%clk 0:02:00]} 13. Rd1 {[%clk 0:01:52]}  exd4 {[%clk 0:01:55]} 14. exd4 {[%clk 0:01:53]}  Nb6 {[%clk 0:01:50]} 15. Ba2 {[%clk 0:01:53]}  Nbd5 {[%clk 0:01:41]} 16. h3 {[%clk 0:01:53]}  Be6 {[%clk 0:01:40]} 17. Nf3 {[%clk 0:01:51]}  Re8 {[%clk 0:01:36]} 18. Ne5 {[%clk 0:01:40]}  Bd6 {[%clk 0:01:31]} 19. Bb1 {[%clk 0:01:30]}  Ne7 {[%clk 0:01:14]} *


[Site "https://www.chess.com"]

[Event "Titled Tuesday Blitz April 05 Early 2022"]
[White "Mekhitarian, Krikor Sevag"]
[Black "Ianov, Viktor"]
[WhiteFideId "2107660"]
[BlackFideId "14102730"]
[WhiteElo "2598"]
[BlackElo "2161"]
[Result "1-0"]
[Round "03"]
[TimeControl "180+1"]
[Date "2022.04.05"]
[WhiteClock "0:00:05"]
[BlackClock "0:01:26"]

1. Nf3 {[%clk 0:03:00]}  d6 {[%clk 0:02:59]} 2. d4 {[%clk 0:03:00]}  g6 {[%clk 0:02:59]} 3. c4 {[%clk 0:02:58]}  Bg7 {[%clk 0:02:59]} 4. Nc3 {[%clk 0:02:58]}  Bg4 {[%clk 0:02:59]} 5. g3 {[%clk 0:02:30]}  Bxf3 {[%clk 0:02:57]} 6. exf3 {[%clk 0:02:30]}  e6 {[%clk 0:02:57]} 7. d5 {[%clk 0:02:18]}  e5 {[%clk 0:02:57]} 8. Bg2 {[%clk 0:02:10]}  Ne7 {[%clk 0:02:57]} 9. O-O {[%clk 0:02:09]}  O-O {[%clk 0:02:56]} 10. f4 {[%clk 0:02:09]}  Nd7 {[%clk 0:02:56]} 11. Re1 {[%clk 0:02:04]}  Nf5 {[%clk 0:02:55]} 12. Bd2 {[%clk 0:01:59]}  Re8 {[%clk 0:02:53]} 13. fxe5 {[%clk 0:01:42]}  Nxe5 {[%clk 0:02:52]} 14. b3 {[%clk 0:01:41]}  a6 {[%clk 0:02:50]} 15. Be4 {[%clk 0:01:16]}  Qd7 {[%clk 0:02:45]} 16. Rc1 {[%clk 0:01:15]}  h5 {[%clk 0:02:38]} 17. Bf4 {[%clk 0:01:07]}  Ng4 {[%clk 0:02:34]} 18. h3 {[%clk 0:00:59]}  Nf6 {[%clk 0:02:33]} 19. Bg2 {[%clk 0:00:58]}  Rxe1+ {[%clk 0:02:28]} 20. Qxe1 {[%clk 0:00:57]}  Re8 {[%clk 0:02:27]} 21. Qd2 {[%clk 0:00:57]}  b5 {[%clk 0:02:22]} 22. cxb5 {[%clk 0:00:53]}  axb5 {[%clk 0:02:21]} 23. Re1 {[%clk 0:00:47]}  b4 {[%clk 0:02:16]} 24. Na4 {[%clk 0:00:31]}  Rxe1+ {[%clk 0:02:13]} 25. Qxe1 {[%clk 0:00:31]}  Qb5 {[%clk 0:02:13]} 26. Qd1 {[%clk 0:00:28]}  Ne7 {[%clk 0:02:09]} 27. Bf1 {[%clk 0:00:18]}  Qxd5 {[%clk 0:02:07]} 28. Qxd5 {[%clk 0:00:16]}  Nfxd5 {[%clk 0:02:05]} 29. Bd2 {[%clk 0:00:17]}  c5 {[%clk 0:02:04]} 30. Bc4 {[%clk 0:00:16]}  Nc3 {[%clk 0:02:03]} 31. Bxc3 {[%clk 0:00:14]}  bxc3 {[%clk 0:02:02]} 32. Bd3 {[%clk 0:00:14]}  Nc6 {[%clk 0:01:59]} 33. a3 {[%clk 0:00:14]}  Bd4 {[%clk 0:01:45]} 34. Kf1 {[%clk 0:00:14]}  Ne5 {[%clk 0:01:45]} 35. Bc2 {[%clk 0:00:14]}  f5 {[%clk 0:01:42]} 36. Ke2 {[%clk 0:00:14]}  Kf7 {[%clk 0:01:42]} 37. Nb6 {[%clk 0:00:14]}  Ke6 {[%clk 0:01:40]} 38. Nc4 {[%clk 0:00:14]}  d5 {[%clk 0:01:38]} 39. Nxe5 {[%clk 0:00:13]}  Kxe5 {[%clk 0:01:38]} 40. Kf3 {[%clk 0:00:11]}  g5 {[%clk 0:01:37]} 41. Ke2 {[%clk 0:00:10]}  g4 {[%clk 0:01:37]} 42. hxg4 {[%clk 0:00:11]}  h4 {[%clk 0:01:36]} 43. gxh4 {[%clk 0:00:11]}  fxg4 {[%clk 0:01:36]} 44. h5 {[%clk 0:00:11]}  Kf4 {[%clk 0:01:36]} 45. h6 {[%clk 0:00:11]}  c4 {[%clk 0:01:33]} 46. bxc4 {[%clk 0:00:10]}  dxc4 {[%clk 0:01:32]} 47. h7 {[%clk 0:00:11]}  Kg5 {[%clk 0:01:32]} 48. a4 {[%clk 0:00:11]}  Kh6 {[%clk 0:01:31]} 49. a5 {[%clk 0:00:12]}  Kg7 {[%clk 0:01:31]} 50. a6 {[%clk 0:00:12]}  Bc5 {[%clk 0:01:31]} 51. Kf1 {[%clk 0:00:08]}  Bd4 {[%clk 0:01:30]} 52. Kg2 {[%clk 0:00:08]}  Bc5 {[%clk 0:01:31]} 53. Kg3 {[%clk 0:00:08]}  Bb6 {[%clk 0:01:31]} 54. Kxg4 {[%clk 0:00:04]}  Bxf2 {[%clk 0:01:31]} 55. Kf3 {[%clk 0:00:05]}  Bd4 {[%clk 0:01:31]} 56. Kf4 {[%clk 0:00:05]}  Ba7 {[%clk 0:01:31]} 57. Bf5 {[%clk 0:00:05]}  Bb6 {[%clk 0:01:30]} 58. Kf3 {[%clk 0:00:05]}  Ba7 {[%clk 0:01:29]} 59. Ke2 {[%clk 0:00:05]}  Bd4 {[%clk 0:01:29]} 60. Kd1 {[%clk 0:00:06]}  Kh6 {[%clk 0:01:27]} 61. a7 {[%clk 0:00:05]}  Kg5 {[%clk 0:01:26]} 62. a8=Q {[%clk 0:00:04]}  Kxf5 {[%clk 0:01:26]} 63. Qd5+ {[%clk 0:00:04]}  Be5 {[%clk 0:01:26]} 64. h8=Q {[%clk 0:00:05]}  Kf4 {[%clk 0:01:26]} 65. Qhxe5+ {[%clk 0:00:05]} 1-0


[Site "https://www.chess.com"]

[Event "Titled Tuesday Blitz April 05 Early 2022"]
[White "Melikhov, Evgeny V."]
[Black "Yang, Kaiqi"]
[WhiteFideId "4122046"]
[BlackFideId "8604398"]
[WhiteElo "1931"]
[BlackElo "2373"]
[Result "0-1"]
[Round "03"]
[TimeControl "180+1"]
[Date "2022.04.05"]
[WhiteClock "0:00:15"]
[BlackClock "0:01:10"]

1. d4 {[%clk 0:02:56]}  e6 {[%clk 0:02:59]} 2. c4 {[%clk 0:02:56]}  f5 {[%clk 0:02:59]} 3. g3 {[%clk 0:02:56]}  Nf6 {[%clk 0:02:59]} 4. Bg2 {[%clk 0:02:56]}  d5 {[%clk 0:02:59]} 5. Nf3 {[%clk 0:02:55]}  c6 {[%clk 0:02:59]} 6. O-O {[%clk 0:02:55]}  Bd6 {[%clk 0:02:59]} 7. Bf4 {[%clk 0:02:55]}  Bxf4 {[%clk 0:02:59]} 8. gxf4 {[%clk 0:02:55]}  O-O {[%clk 0:02:59]} 9. Nbd2 {[%clk 0:02:54]}  Nbd7 {[%clk 0:02:59]} 10. Qc2 {[%clk 0:02:48]}  Ne4 {[%clk 0:02:59]} 11. Nb3 {[%clk 0:02:48]}  Qe7 {[%clk 0:02:57]} 12. Nc1 {[%clk 0:02:47]}  Kh8 {[%clk 0:02:43]} 13. Nd3 {[%clk 0:02:47]}  Rg8 {[%clk 0:02:40]} 14. Nfe5 {[%clk 0:02:45]}  g5 {[%clk 0:02:33]} 15. f3 {[%clk 0:02:39]}  Nd6 {[%clk 0:02:32]} 16. c5 {[%clk 0:02:38]}  Nf7 {[%clk 0:02:29]} 17. e4 {[%clk 0:02:23]}  Ndxe5 {[%clk 0:01:54]} 18. fxe5 {[%clk 0:02:07]}  f4 {[%clk 0:01:46]} 19. Nf2 {[%clk 0:01:53]}  h5 {[%clk 0:01:44]} 20. Kh1 {[%clk 0:01:22]}  Nh6 {[%clk 0:01:29]} 21. Rg1 {[%clk 0:01:12]}  Bd7 {[%clk 0:01:29]} 22. Bf1 {[%clk 0:01:08]}  Rg7 {[%clk 0:01:26]} 23. Be2 {[%clk 0:01:07]}  Rag8 {[%clk 0:01:25]} 24. Rg2 {[%clk 0:01:00]}  g4 {[%clk 0:01:24]} 25. Rag1 {[%clk 0:00:59]}  g3 {[%clk 0:01:16]} 26. Nd3 {[%clk 0:00:21]}  gxh2 {[%clk 0:01:11]} 27. Rxg7 {[%clk 0:00:15]}  hxg1=Q+ {[%clk 0:01:10]} 28. Rxg1 {[%clk 0:00:15]}  Qh4# {[%clk 0:01:10]} 0-1


[Site "https://www.chess.com"]